[Event "*** SCC Grand Prix: Titled Tuesday Blitz"]
[Site "Chess.com"]
[Date "2020.10.06"]
[Round "8"]
[White "kngopal"]
[Black "Lupul_Cenusiu"]
[Result "1/2-1/2"]
[WhiteElo "2261"]
[BlackElo "2516"]
[TimeControl "180+1"]
[EndTime "11:35:37 PDT"]
[Termination "Game drawn by repetition"]

1. e4 {[%clk 0:03:00.9]} 1... c5 {[%clk 0:02:59.1]} 2. Nf3 {[%clk 0:02:57.7]}
2... e6 {[%clk 0:02:59.1]} 3. c3 {[%clk 0:02:56.4]} 3... d6 {[%clk 0:02:58.5]}
4. d4 {[%clk 0:02:55.7]} 4... Nf6 {[%clk 0:02:59]} 5. Bd3 {[%clk 0:02:54.8]}
5... Nc6 {[%clk 0:02:58.9]} 6. O-O {[%clk 0:02:53.3]} 6... Be7 {[%clk
0:02:58.3]} 7. a3 {[%clk 0:02:48.1]} 7... O-O {[%clk 0:02:56.8]} 8. Qe2 {[%clk
0:02:47.7]} 8... Qc7 {[%clk 0:02:51.9]} 9. h3 {[%clk 0:02:46.6]} 9... b6 {[%clk
0:02:50.3]} 10. Bf4 {[%clk 0:02:45.3]} 10... e5 {[%clk 0:02:47.1]} 11. dxe5
{[%clk 0:02:35.2]} 11... Nxe5 {[%clk 0:02:46.8]} 12. Nxe5 {[%clk 0:02:28.7]}
12... dxe5 {[%clk 0:02:46.2]} 13. Bg3 {[%clk 0:02:28]} 13... Bb7 {[%clk
0:02:39.8]} 14. Nd2 {[%clk 0:02:25.6]} 14... Rad8 {[%clk 0:02:38.4]} 15. Rad1
{[%clk 0:02:22.1]} 15... g6 {[%clk 0:02:34.1]} 16. Nc4 {[%clk 0:02:21.2]} 16...
Nd7 {[%clk 0:02:25.9]} 17. Ne3 {[%clk 0:02:16.4]} 17... Nf6 {[%clk 0:02:24.5]}
18. Nc4 {[%clk 0:02:03.4]} 18... Nd7 {[%clk 0:02:22.9]} 19. Rfe1 {[%clk
0:01:57.2]} 19... b5 {[%clk 0:02:18.6]} 20. Ne3 {[%clk 0:01:55.1]} 20... c4
{[%clk 0:02:18.8]} 21. Bc2 {[%clk 0:01:53.5]} 21... Nb6 {[%clk 0:02:16.4]} 22.
Ng4 {[%clk 0:01:49.9]} 22... f6 {[%clk 0:02:16.1]} 23. Kh2 {[%clk 0:01:34.5]}
23... Bc8 {[%clk 0:02:12.4]} 24. Ne3 {[%clk 0:01:30.8]} 24... Be6 {[%clk
0:02:10.1]} 25. Rf1 {[%clk 0:01:19.9]} 25... Rxd1 {[%clk 0:02:08.8]} 26. Qxd1
{[%clk 0:01:18.6]} 26... Rd8 {[%clk 0:02:07.5]} 27. Qe2 {[%clk 0:01:18.7]} 27...
Bd6 {[%clk 0:02:07.7]} 28. Rd1 {[%clk 0:01:08.7]} 28... Bc5 {[%clk 0:02:06.9]}
29. Ng4 {[%clk 0:01:06.6]} 29... Rxd1 {[%clk 0:01:59.3]} 30. Qxd1 {[%clk
0:01:04.8]} 30... Be7 {[%clk 0:01:57.8]} 31. Ne3 {[%clk 0:01:01.2]} 31... Qd6
{[%clk 0:01:54.5]} 32. Qe2 {[%clk 0:00:59.7]} 32... a6 {[%clk 0:01:44.2]} 33.
Ng4 {[%clk 0:00:58]} 33... h5 {[%clk 0:01:41.4]} 34. Ne3 {[%clk 0:00:57.5]}
34... Kg7 {[%clk 0:01:40.4]} 35. Nf1 {[%clk 0:00:56.9]} 35... Nd7 {[%clk
0:01:37.2]} 36. Nd2 {[%clk 0:00:56.2]} 36... Nc5 {[%clk 0:01:36]} 37. Qe3 {[%clk
0:00:56.4]} 37... g5 {[%clk 0:01:32.9]} 38. h4 {[%clk 0:00:54.4]} 38... g4
{[%clk 0:01:25.2]} 39. f3 {[%clk 0:00:54.2]} 39... Nd7 {[%clk 0:01:20.7]} 40. f4
{[%clk 0:00:53.3]} 40... Bf7 {[%clk 0:01:20.6]} 41. f5 {[%clk 0:00:49.5]} 41...
Qc7 {[%clk 0:01:15.3]} 42. Bf2 {[%clk 0:00:48.3]} 42... Bc5 {[%clk 0:01:14.5]}
43. Qe2 {[%clk 0:00:48.1]} 43... Qb6 {[%clk 0:01:13.8]} 44. Bxc5 {[%clk
0:00:45.2]} 44... Nxc5 {[%clk 0:01:14.1]} 45. Nf1 {[%clk 0:00:44.2]} 45... Qc6
{[%clk 0:01:14]} 46. Ng3 {[%clk 0:00:43.6]} 46... Qd6 {[%clk 0:01:10.7]} 47. Qe3
{[%clk 0:00:43.2]} 47... Nd7 {[%clk 0:01:04.6]} 48. Qa7 {[%clk 0:00:42.6]} 48...
Kf8 {[%clk 0:01:01.9]} 49. Qa8+ {[%clk 0:00:41.9]} 49... Kg7 {[%clk 0:01:00.2]}
50. Qd8 {[%clk 0:00:40.5]} 50... Qc6 {[%clk 0:00:58.7]} 51. Qe7 {[%clk 0:00:40]}
51... Kg8 {[%clk 0:00:58.6]} 52. Qd8+ {[%clk 0:00:38.1]} 52... Kg7 {[%clk
0:00:58.7]} 53. Qe7 {[%clk 0:00:38]} 53... Kg8 {[%clk 0:00:58.8]} 54. Bd1 {[%clk
0:00:38]} 54... Nf8 {[%clk 0:00:59.2]} 55. Be2 {[%clk 0:00:36.6]} 55... Nd7
{[%clk 0:00:55]} 56. Qd8+ {[%clk 0:00:34.4]} 56... Nf8 {[%clk 0:00:53.1]} 57.
Bd1 {[%clk 0:00:31]} 57... Kg7 {[%clk 0:00:52.5]} 58. Bc2 {[%clk 0:00:27.3]}
58... Nd7 {[%clk 0:00:51.7]} 1/2-1/2

[Event "*** SCC Grand Prix: Titled Tuesday Blitz"]
[Site "Chess.com"]
[Date "2020.10.06"]
[Round "8"]
[White "kakakz"]
[Black "valeriocarnicelli"]
[Result "0-1"]
[WhiteElo "2390"]
[BlackElo "2546"]
[TimeControl "180+1"]
[EndTime "11:35:37 PDT"]
[Termination "valeriocarnicelli won by checkmate"]

1. d4 {[%clk 0:02:59.8]} 1... d5 {[%clk 0:02:59.8]} 2. Nf3 {[%clk 0:02:59.5]}
2... Nf6 {[%clk 0:02:59.8]} 3. c4 {[%clk 0:03:00.1]} 3... c6 {[%clk 0:02:59.9]}
4. Nc3 {[%clk 0:02:59.8]} 4... dxc4 {[%clk 0:03:00.1]} 5. g3 {[%clk 0:02:58.9]}
5... b5 {[%clk 0:02:59]} 6. Bg2 {[%clk 0:02:57.7]} 6... Bb7 {[%clk 0:02:58.5]}
7. Ne5 {[%clk 0:02:57.8]} 7... a6 {[%clk 0:02:58.7]} 8. O-O {[%clk 0:02:56]}
8... e6 {[%clk 0:02:58.7]} 9. a4 {[%clk 0:02:55.7]} 9... Qc8 {[%clk 0:02:58.9]}
10. e4 {[%clk 0:02:51.4]} 10... Nbd7 {[%clk 0:02:56.8]} 11. f4 {[%clk
0:02:48.8]} 11... Be7 {[%clk 0:02:38.3]} 12. g4 {[%clk 0:02:33]} 12... c5 {[%clk
0:02:24.2]} 13. g5 {[%clk 0:02:27.1]} 13... cxd4 {[%clk 0:02:18.7]} 14. gxf6
{[%clk 0:02:26.7]} 14... gxf6 {[%clk 0:02:19.6]} 15. Nxd7 {[%clk 0:02:25.6]}
15... Qxd7 {[%clk 0:02:20.5]} 16. Ne2 {[%clk 0:01:52.4]} 16... Bc5 {[%clk
0:02:20.3]} 17. Kh1 {[%clk 0:01:42.6]} 17... O-O-O {[%clk 0:02:16.7]} 18. axb5
{[%clk 0:01:42]} 18... axb5 {[%clk 0:02:16.9]} 19. Ng3 {[%clk 0:01:35.6]} 19...
h5 {[%clk 0:02:12.8]} 20. e5 {[%clk 0:01:25.9]} 20... f5 {[%clk 0:02:02.6]} 21.
Bxb7+ {[%clk 0:01:00.2]} 21... Qxb7+ {[%clk 0:02:03.5]} 22. Qf3 {[%clk
0:01:00.7]} 22... h4 {[%clk 0:02:03.6]} 23. Ne2 {[%clk 0:00:39.4]} 23... d3
{[%clk 0:02:01]} 24. Nc3 {[%clk 0:00:37.3]} 24... Qxf3+ {[%clk 0:01:56.1]} 25.
Rxf3 {[%clk 0:00:37.1]} 25... b4 {[%clk 0:01:40.1]} 26. Nb5 {[%clk 0:00:32]}
26... Kb7 {[%clk 0:01:31.4]} 27. Be3 {[%clk 0:00:31.8]} 27... Kb6 {[%clk
0:01:16.1]} 28. Nd6 {[%clk 0:00:31.1]} 28... Bxe3 {[%clk 0:00:57.7]} 29. Rxe3
{[%clk 0:00:21.1]} 29... Kc5 {[%clk 0:00:55.7]} 30. Rc1 {[%clk 0:00:19.4]} 30...
Kd4 {[%clk 0:00:45.5]} 31. Rh3 {[%clk 0:00:08.7]} 31... Rxd6 {[%clk 0:00:42]}
32. exd6 {[%clk 0:00:08.7]} 32... c3 {[%clk 0:00:42.5]} 33. bxc3+ {[%clk
0:00:07.8]} 33... bxc3 {[%clk 0:00:43.4]} 34. Kg2 {[%clk 0:00:07.4]} 34... c2
{[%clk 0:00:35.7]} 35. Kf2 {[%clk 0:00:02.8]} 35... d2 {[%clk 0:00:34.2]} 36.
Rxc2 {[%clk 0:00:03.2]} 36... d1=Q {[%clk 0:00:34.5]} 37. Re2 {[%clk 0:00:03.4]}
37... Rg8 {[%clk 0:00:27.7]} 38. Rxh4 {[%clk 0:00:02.2]} 38... Qg1+ {[%clk
0:00:24.3]} 39. Kf3 {[%clk 0:00:02.6]} 39... Qf1+ {[%clk 0:00:23.4]} 40. Rf2
{[%clk 0:00:02.8]} 40... Qd3# {[%clk 0:00:23.5]} 0-1

[Event "*** SCC Grand Prix: Titled Tuesday Blitz"]
[Site "Chess.com"]
[Date "2020.10.06"]
[Round "8"]
[White "Fischerev7"]
[Black "AlexSuv"]
[Result "0-1"]
[WhiteElo "2347"]
[BlackElo "2496"]
[TimeControl "180+1"]
[EndTime "11:35:37 PDT"]
[Termination "AlexSuv won by checkmate"]

1. e4 {[%clk 0:00:21.8]} 1... c5 {[%clk 0:02:56.4]} 2. Nf3 {[%clk 0:00:22.2]}
2... e6 {[%clk 0:02:56.7]} 3. d4 {[%clk 0:00:22.8]} 3... cxd4 {[%clk 0:02:57.6]}
4. Nxd4 {[%clk 0:00:23.7]} 4... Nc6 {[%clk 0:02:58.2]} 5. Nc3 {[%clk 0:00:24.4]}
5... Qc7 {[%clk 0:02:58.6]} 6. Ndb5 {[%clk 0:00:23.6]} 6... Qb8 {[%clk
0:02:57.8]} 7. Be3 {[%clk 0:00:24.3]} 7... a6 {[%clk 0:02:57]} 8. Bb6 {[%clk
0:00:24.9]} 8... axb5 {[%clk 0:02:57.4]} 9. Nxb5 {[%clk 0:00:25.8]} 9... Bb4+
{[%clk 0:02:57.9]} 10. c3 {[%clk 0:00:26.4]} 10... Ba5 {[%clk 0:02:56.1]} 11.
Nc7+ {[%clk 0:00:27]} 11... Qxc7 {[%clk 0:02:56.1]} 12. Bxc7 {[%clk 0:00:27.9]}
12... Bxc7 {[%clk 0:02:56.7]} 13. Qg4 {[%clk 0:00:28.3]} 13... Kf8 {[%clk
0:02:55.8]} 14. f4 {[%clk 0:00:28.5]} 14... Nge7 {[%clk 0:02:53.2]} 15. Bd3
{[%clk 0:00:27.9]} 15... d5 {[%clk 0:02:49.7]} 16. exd5 {[%clk 0:00:24.7]} 16...
exd5 {[%clk 0:02:50.6]} 17. Qf3 {[%clk 0:00:24.9]} 17... g6 {[%clk 0:02:46.2]}
18. O-O {[%clk 0:00:24.9]} 18... Kg7 {[%clk 0:02:46.6]} 19. Kh1 {[%clk
0:00:23.2]} 19... Be6 {[%clk 0:02:44.8]} 20. a4 {[%clk 0:00:23.1]} 20... Rad8
{[%clk 0:02:35.7]} 21. Rae1 {[%clk 0:00:21.5]} 21... Rhe8 {[%clk 0:02:30.9]} 22.
b4 {[%clk 0:00:20.4]} 22... Nf5 {[%clk 0:02:24.5]} 23. a5 {[%clk 0:00:20.4]}
23... d4 {[%clk 0:02:16.5]} 24. Bxf5 {[%clk 0:00:16.2]} 24... Bxf5 {[%clk
0:02:17.3]} 25. b5 {[%clk 0:00:15]} 25... Nxa5 {[%clk 0:02:13.5]} 26. cxd4
{[%clk 0:00:15.4]} 26... Bb6 {[%clk 0:02:01]} 27. Qc3 {[%clk 0:00:13.2]} 27...
Rc8 {[%clk 0:01:56.8]} 28. Qb2 {[%clk 0:00:11.6]} 28... Nc4 {[%clk 0:01:55.1]}
29. Qa1 {[%clk 0:00:10.2]} 29... Bd3 {[%clk 0:01:54.2]} 30. d5+ {[%clk
0:00:10.3]} 30... Kg8 {[%clk 0:01:51.5]} 31. Rxe8+ {[%clk 0:00:10.4]} 31... Rxe8
{[%clk 0:01:51.2]} 32. Rd1 {[%clk 0:00:11.3]} 32... Bf5 {[%clk 0:01:44.5]} 33.
d6 {[%clk 0:00:11.4]} 33... Rd8 {[%clk 0:01:32.7]} 34. h3 {[%clk 0:00:11.8]}
34... Ne3 {[%clk 0:01:07.1]} 35. Rd2 {[%clk 0:00:12.1]} 35... Be4 {[%clk
0:01:04.7]} 36. Qe5 {[%clk 0:00:11.6]} 36... Nc4 {[%clk 0:00:44.6]} 37. Re2
{[%clk 0:00:08]} 37... Nxe5 {[%clk 0:00:43.6]} 38. fxe5 {[%clk 0:00:06.4]} 38...
Bf5 {[%clk 0:00:43.1]} 39. Re1 {[%clk 0:00:05.8]} 39... Rc8 {[%clk 0:00:42.6]}
40. g4 {[%clk 0:00:04.7]} 40... Be6 {[%clk 0:00:33.2]} 41. Rd1 {[%clk
0:00:04.9]} 41... Rc2 {[%clk 0:00:31.6]} 42. Ra1 {[%clk 0:00:03]} 42... Bd5#
{[%clk 0:00:30.5]} 0-1

[Event "*** SCC Grand Prix: Titled Tuesday Blitz"]
[Site "Chess.com"]
[Date "2020.10.06"]
[Round "8"]
[White "MarceloPlaya"]
[Black "alejanchess73"]
[Result "0-1"]
[WhiteElo "2265"]
[BlackElo "2431"]
[TimeControl "180+1"]
[EndTime "11:35:37 PDT"]
[Termination "alejanchess73 won on time"]

1. e4 {[%clk 0:03:00.9]} 1... e6 {[%clk 0:02:59.6]} 2. d4 {[%clk 0:02:59.7]}
2... d5 {[%clk 0:02:59.8]} 3. Nc3 {[%clk 0:02:58.4]} 3... Bb4 {[%clk 0:02:59.2]}
4. e5 {[%clk 0:02:57.1]} 4... c5 {[%clk 0:02:58.8]} 5. a3 {[%clk 0:02:56.7]}
5... Bxc3+ {[%clk 0:02:58.5]} 6. bxc3 {[%clk 0:02:56.3]} 6... Qa5 {[%clk
0:02:59.1]} 7. Bd2 {[%clk 0:02:48]} 7... Qa4 {[%clk 0:02:58.7]} 8. Qg4 {[%clk
0:02:44.6]} 8... Kf8 {[%clk 0:02:52.9]} 9. Ra2 {[%clk 0:02:27]} 9... Nc6 {[%clk
0:02:51.3]} 10. Nf3 {[%clk 0:02:26]} 10... Nge7 {[%clk 0:02:48.1]} 11. Bd3
{[%clk 0:02:20.6]} 11... Bd7 {[%clk 0:02:40.2]} 12. O-O {[%clk 0:02:19.1]} 12...
Rc8 {[%clk 0:02:26.5]} 13. Rb1 {[%clk 0:02:16.6]} 13... c4 {[%clk 0:02:23.8]}
14. Bf1 {[%clk 0:02:01.1]} 14... b6 {[%clk 0:02:21.4]} 15. Nh4 {[%clk
0:01:55.4]} 15... Ng6 {[%clk 0:02:14.7]} 16. f4 {[%clk 0:01:48.2]} 16... Nce7
{[%clk 0:02:12.3]} 17. Be2 {[%clk 0:01:27.8]} 17... Nxh4 {[%clk 0:01:57.2]} 18.
Qxh4 {[%clk 0:01:26.3]} 18... Nf5 {[%clk 0:01:57.2]} 19. Qf2 {[%clk 0:01:21.3]}
19... h5 {[%clk 0:01:56.1]} 20. g3 {[%clk 0:01:20.5]} 20... g6 {[%clk
0:01:51.9]} 21. h3 {[%clk 0:01:11.4]} 21... Ke7 {[%clk 0:01:43.9]} 22. Be1
{[%clk 0:01:07.3]} 22... Rcg8 {[%clk 0:01:42.1]} 23. Kh2 {[%clk 0:01:00.9]}
23... Kd8 {[%clk 0:01:42.1]} 24. Rb4 {[%clk 0:00:58.2]} 24... Qc6 {[%clk
0:01:38.6]} 25. a4 {[%clk 0:00:57.9]} 25... a5 {[%clk 0:01:33.1]} 26. Rb1 {[%clk
0:00:56.1]} 26... Kc7 {[%clk 0:01:32.6]} 27. Bd2 {[%clk 0:00:54.8]} 27... Qa8
{[%clk 0:01:19.1]} 28. Bc1 {[%clk 0:00:53.7]} 28... Rb8 {[%clk 0:01:11.5]} 29.
Ba3 {[%clk 0:00:51.1]} 29... Rb7 {[%clk 0:01:11.5]} 30. Kg1 {[%clk 0:00:46.4]}
30... Qd8 {[%clk 0:01:05.9]} 31. g4 {[%clk 0:00:44.5]} 31... hxg4 {[%clk
0:01:05.3]} 32. hxg4 {[%clk 0:00:44]} 32... Ng7 {[%clk 0:00:53.3]} 33. Bd6+
{[%clk 0:00:39.4]} 33... Kc8 {[%clk 0:00:52.8]} 34. g5 {[%clk 0:00:31]} 34...
Nf5 {[%clk 0:00:48.4]} 35. Bg4 {[%clk 0:00:28.3]} 35... Nxd6 {[%clk 0:00:44.8]}
36. exd6 {[%clk 0:00:26.9]} 36... Qf8 {[%clk 0:00:45.4]} 37. Qe3 {[%clk
0:00:17.5]} 37... Qxd6 {[%clk 0:00:44.8]} 38. Qe5 {[%clk 0:00:17.7]} 38... Qxe5
{[%clk 0:00:44.7]} 39. fxe5 {[%clk 0:00:13.8]} 39... Rh4 {[%clk 0:00:44.5]} 40.
Bf3 {[%clk 0:00:12.9]} 40... Rh3 {[%clk 0:00:43.1]} 41. Kg2 {[%clk 0:00:09.2]}
41... Rh7 {[%clk 0:00:40]} 42. Rab2 {[%clk 0:00:08.4]} 42... Kc7 {[%clk
0:00:40.3]} 43. Ra1 {[%clk 0:00:08.2]} 43... Rb8 {[%clk 0:00:39.5]} 44. Bg4
{[%clk 0:00:07.3]} 44... Bc6 {[%clk 0:00:38.5]} 0-1

[Event "*** SCC Grand Prix: Titled Tuesday Blitz"]
[Site "Chess.com"]
[Date "2020.10.06"]
[Round "8"]
[White "Bulldog167"]
[Black "Gahan-MG"]
[Result "1-0"]
[WhiteElo "2783"]
[BlackElo "2586"]
[TimeControl "180+1"]
[EndTime "11:35:38 PDT"]
[Termination "Bulldog167 won by resignation"]

1. e4 {[%clk 0:03:00.9]} 1... Nf6 {[%clk 0:02:59]} 2. Nc3 {[%clk 0:02:59.5]}
2... d5 {[%clk 0:02:59.2]} 3. exd5 {[%clk 0:02:59.7]} 3... Nxd5 {[%clk
0:03:00.1]} 4. Nxd5 {[%clk 0:02:59.9]} 4... Qxd5 {[%clk 0:02:59.9]} 5. Ne2
{[%clk 0:03:00.4]} 5... Bg4 {[%clk 0:02:57.6]} 6. f3 {[%clk 0:02:55.9]} 6... Bd7
{[%clk 0:02:55.1]} 7. Nc3 {[%clk 0:02:55.6]} 7... Qh5 {[%clk 0:02:53.7]} 8. Bd3
{[%clk 0:02:47]} 8... e6 {[%clk 0:02:51.2]} 9. Ne4 {[%clk 0:02:45.6]} 9... Nc6
{[%clk 0:02:46.9]} 10. O-O {[%clk 0:02:38.2]} 10... Be7 {[%clk 0:02:43]} 11. b3
{[%clk 0:02:37.3]} 11... O-O {[%clk 0:02:36]} 12. Bb2 {[%clk 0:02:36.7]} 12...
a5 {[%clk 0:02:28.6]} 13. Ng3 {[%clk 0:02:29.3]} 13... Qh4 {[%clk 0:02:27.6]}
14. Qe2 {[%clk 0:02:28.1]} 14... Bc5+ {[%clk 0:02:26.9]} 15. Kh1 {[%clk
0:02:28]} 15... Bd6 {[%clk 0:02:17.6]} 16. Qf2 {[%clk 0:02:17.5]} 16... a4
{[%clk 0:02:15.2]} 17. f4 {[%clk 0:02:10.8]} 17... Nb4 {[%clk 0:02:04]} 18. Bxg7
{[%clk 0:02:08.3]} 18... Nxd3 {[%clk 0:01:57]} 19. cxd3 {[%clk 0:02:09.2]} 19...
Rfe8 {[%clk 0:01:51.2]} 20. Bc3 {[%clk 0:02:04.3]} 20... f5 {[%clk 0:01:41.8]}
21. Rae1 {[%clk 0:01:37.2]} 21... Kf7 {[%clk 0:01:39.3]} 22. Nxf5 {[%clk
0:01:33.2]} 22... Qxf2 {[%clk 0:01:35.3]} 23. Nxd6+ {[%clk 0:01:33.4]} 23...
cxd6 {[%clk 0:01:36.2]} 24. Rxf2 {[%clk 0:01:33.8]} 24... axb3 {[%clk 0:01:31]}
25. axb3 {[%clk 0:01:34.7]} 25... Ra3 {[%clk 0:01:24.1]} 26. b4 {[%clk
0:01:34.3]} 26... Rg8 {[%clk 0:01:18.5]} 27. h3 {[%clk 0:01:34]} 27... Rg3
{[%clk 0:01:15.1]} 28. Kh2 {[%clk 0:01:30.5]} 28... Rxd3 {[%clk 0:01:14.4]} 29.
g4 {[%clk 0:01:28.4]} 29... d5 {[%clk 0:01:03.8]} 30. Be5 {[%clk 0:00:44.3]}
30... Rxh3+ {[%clk 0:01:02.4]} 31. Kg1 {[%clk 0:00:45.2]} 31... Rad3 {[%clk
0:00:44.4]} 32. Rc1 {[%clk 0:00:40.6]} 32... Rhg3+ {[%clk 0:00:33.7]} 33. Rg2
{[%clk 0:00:41]} 33... Rxg2+ {[%clk 0:00:33.1]} 34. Kxg2 {[%clk 0:00:41.9]}
34... Rxd2+ {[%clk 0:00:33.7]} 35. Kg3 {[%clk 0:00:42.7]} 35... Rd3+ {[%clk
0:00:28]} 36. Kh4 {[%clk 0:00:43.1]} 36... Bc6 {[%clk 0:00:11.2]} 37. b5 {[%clk
0:00:43]} 37... Bxb5 {[%clk 0:00:11.7]} 38. Rc7+ {[%clk 0:00:43.9]} 38... Ke8
{[%clk 0:00:10.8]} 39. Rxb7 {[%clk 0:00:43.4]} 39... Bd7 {[%clk 0:00:09.9]} 40.
Kg5 {[%clk 0:00:41.5]} 40... Rg3 {[%clk 0:00:08.8]} 41. Kf6 {[%clk 0:00:41.8]}
41... Bc8 {[%clk 0:00:08]} 42. Re7+ {[%clk 0:00:39.2]} 42... Kf8 {[%clk
0:00:08.3]} 43. Rxh7 {[%clk 0:00:37]} 43... Rxg4 {[%clk 0:00:05.9]} 44. Rh8+
{[%clk 0:00:36.4]} 44... Rg8 {[%clk 0:00:06.3]} 45. Bd6+ {[%clk 0:00:36.9]}
45... Ke8 {[%clk 0:00:07]} 46. Rxg8+ {[%clk 0:00:37.4]} 46... Kd7 {[%clk
0:00:07.9]} 47. Be5 {[%clk 0:00:37.3]} 47... Ba6 {[%clk 0:00:08.5]} 48. Rg7+
{[%clk 0:00:37.6]} 48... Kc6 {[%clk 0:00:09.1]} 49. Kxe6 {[%clk 0:00:38.2]}
49... Bd3 {[%clk 0:00:09.2]} 50. Rc7+ {[%clk 0:00:38.1]} 50... Kb6 {[%clk
0:00:09.7]} 1-0

[Event "*** SCC Grand Prix: Titled Tuesday Blitz"]
[Site "Chess.com"]
[Date "2020.10.06"]
[Round "8"]
[White "vrekhson"]
[Black "PavelChernomordik"]
[Result "0-1"]
[WhiteElo "2209"]
[BlackElo "2360"]
[TimeControl "180+1"]
[EndTime "11:35:38 PDT"]
[Termination "PavelChernomordik won by resignation"]

1. e4 {[%clk 0:03:00.9]} 1... g6 {[%clk 0:03:00.4]} 2. d4 {[%clk 0:02:59.4]}
2... Bg7 {[%clk 0:03:00.7]} 3. Nc3 {[%clk 0:02:55.2]} 3... d6 {[%clk 0:03:00.1]}
4. Nf3 {[%clk 0:02:54.9]} 4... a6 {[%clk 0:02:59.1]} 5. Be2 {[%clk 0:02:52.3]}
5... b5 {[%clk 0:02:58.5]} 6. a3 {[%clk 0:02:51.9]} 6... Nd7 {[%clk 0:02:56.9]}
7. Be3 {[%clk 0:02:50.8]} 7... Bb7 {[%clk 0:02:56.1]} 8. O-O {[%clk 0:02:47.6]}
8... c5 {[%clk 0:02:54]} 9. dxc5 {[%clk 0:02:47.4]} 9... dxc5 {[%clk 0:02:41.6]}
10. Rb1 {[%clk 0:02:19.5]} 10... e6 {[%clk 0:02:31.8]} 11. Bg5 {[%clk 0:02:05]}
11... Ne7 {[%clk 0:02:25.8]} 12. Qd6 {[%clk 0:01:54.6]} 12... h6 {[%clk
0:02:14.6]} 13. Bf4 {[%clk 0:01:22.3]} 13... g5 {[%clk 0:01:58.2]} 14. Be3
{[%clk 0:01:19.4]} 14... g4 {[%clk 0:01:38.8]} 15. Ne1 {[%clk 0:00:56.5]} 15...
Be5 {[%clk 0:01:37.4]} 16. Qd3 {[%clk 0:00:56.5]} 16... Qc7 {[%clk 0:01:26.8]}
17. f4 {[%clk 0:00:44.2]} 17... c4 {[%clk 0:01:11.4]} 18. Qd2 {[%clk 0:00:42.4]}
18... Bxc3 {[%clk 0:01:06.8]} 19. Qxc3 {[%clk 0:00:40.5]} 19... O-O-O {[%clk
0:01:06.3]} 20. Bxg4 {[%clk 0:00:34.2]} 20... Bxe4 {[%clk 0:01:04.7]} 21. Bf3
{[%clk 0:00:31.2]} 21... Nd5 {[%clk 0:00:59.3]} 22. Qd4 {[%clk 0:00:23.6]} 22...
Bxf3 {[%clk 0:00:56.6]} 23. Nxf3 {[%clk 0:00:24.5]} 23... Nxe3 {[%clk
0:00:53.8]} 24. Qxe3 {[%clk 0:00:25.4]} 24... Qc5 {[%clk 0:00:53]} 25. Qxc5+
{[%clk 0:00:22.7]} 25... Nxc5 {[%clk 0:00:52.7]} 26. Ne5 {[%clk 0:00:23.6]}
26... Rhf8 {[%clk 0:00:49.8]} 27. Rbd1 {[%clk 0:00:23.6]} 27... Rxd1 {[%clk
0:00:35.7]} 28. Rxd1 {[%clk 0:00:24.5]} 28... f6 {[%clk 0:00:34.6]} 29. Nc6
{[%clk 0:00:22.6]} 29... Kc7 {[%clk 0:00:32.8]} 30. Nd4 {[%clk 0:00:19.9]} 30...
Rd8 {[%clk 0:00:30.6]} 31. b4 {[%clk 0:00:19.3]} 31... cxb3 {[%clk 0:00:27.6]}
32. cxb3 {[%clk 0:00:19.7]} 32... e5 {[%clk 0:00:27.4]} 33. fxe5 {[%clk
0:00:17.9]} 33... fxe5 {[%clk 0:00:26.6]} 34. Rc1 {[%clk 0:00:18.3]} 34... Kb6
{[%clk 0:00:22.1]} 35. Rxc5 {[%clk 0:00:16.2]} 35... exd4 {[%clk 0:00:19.5]} 36.
Rc2 {[%clk 0:00:15.6]} 36... d3 {[%clk 0:00:19]} 37. Rd2 {[%clk 0:00:16]} 37...
Kc5 {[%clk 0:00:19.1]} 38. Kf2 {[%clk 0:00:16.6]} 38... Kd4 {[%clk 0:00:19.4]}
39. g3 {[%clk 0:00:16.8]} 39... Kc3 {[%clk 0:00:18.8]} 40. Ke1 {[%clk
0:00:15.4]} 40... Re8+ {[%clk 0:00:18.4]} 41. Kd1 {[%clk 0:00:15.3]} 41... Rf8
{[%clk 0:00:18.4]} 42. Kc1 {[%clk 0:00:11.4]} 42... Rf1+ {[%clk 0:00:17.2]} 43.
Rd1 {[%clk 0:00:11.7]} 43... d2+ {[%clk 0:00:17.3]} 0-1

[Event "*** SCC Grand Prix: Titled Tuesday Blitz"]
[Site "Chess.com"]
[Date "2020.10.06"]
[Round "8"]
[White "TigrVShlyape"]
[Black "Duhless"]
[Result "1-0"]
[WhiteElo "2835"]
[BlackElo "2952"]
[TimeControl "180+1"]
[EndTime "11:35:40 PDT"]
[Termination "TigrVShlyape won on time"]

1. d4 {[%clk 0:03:00.9]} 1... c5 {[%clk 0:02:58.3]} 2. d5 {[%clk 0:03:00.1]}
2... d6 {[%clk 0:02:58.4]} 3. e4 {[%clk 0:02:58.9]} 3... g6 {[%clk 0:02:58.7]}
4. Nc3 {[%clk 0:02:57.7]} 4... Bg7 {[%clk 0:02:59.2]} 5. Be2 {[%clk 0:02:53.5]}
5... Nf6 {[%clk 0:02:59]} 6. Nf3 {[%clk 0:02:53.5]} 6... O-O {[%clk 0:02:58.4]}
7. O-O {[%clk 0:02:54.1]} 7... Na6 {[%clk 0:02:58.1]} 8. Nd2 {[%clk 0:02:52.9]}
8... Nc7 {[%clk 0:02:57.7]} 9. a4 {[%clk 0:02:52.9]} 9... b6 {[%clk 0:02:56.6]}
10. Nc4 {[%clk 0:02:52.3]} 10... Ba6 {[%clk 0:02:55]} 11. Na3 {[%clk 0:02:44.5]}
11... Bxe2 {[%clk 0:02:49.6]} 12. Qxe2 {[%clk 0:02:44.1]} 12... a6 {[%clk
0:02:50.5]} 13. Bg5 {[%clk 0:02:41.6]} 13... Nd7 {[%clk 0:02:49.6]} 14. Nc4
{[%clk 0:02:29.7]} 14... h6 {[%clk 0:02:36.5]} 15. Bh4 {[%clk 0:02:29.2]} 15...
Qe8 {[%clk 0:02:22.8]} 16. Ne3 {[%clk 0:02:22.2]} 16... Rb8 {[%clk 0:02:20]} 17.
Kh1 {[%clk 0:02:14.6]} 17... Rb7 {[%clk 0:02:17.7]} 18. f4 {[%clk 0:02:12.7]}
18... b5 {[%clk 0:02:15.2]} 19. axb5 {[%clk 0:02:12.1]} 19... axb5 {[%clk
0:02:16.1]} 20. e5 {[%clk 0:02:11.2]} 20... f5 {[%clk 0:02:02.3]} 21. e6 {[%clk
0:01:56.8]} 21... Nf6 {[%clk 0:01:46.1]} 22. Qf3 {[%clk 0:01:38.1]} 22... b4
{[%clk 0:01:45]} 23. Ne2 {[%clk 0:01:37.6]} 23... Ne4 {[%clk 0:01:40.1]} 24.
Rad1 {[%clk 0:01:37.9]} 24... h5 {[%clk 0:01:34.9]} 25. h3 {[%clk 0:01:36.1]}
25... Nb5 {[%clk 0:01:32.9]} 26. g4 {[%clk 0:01:35.5]} 26... Nd4 {[%clk
0:01:21.3]} 27. Qg2 {[%clk 0:01:16.9]} 27... Nxe2 {[%clk 0:01:18.8]} 28. Qxe2
{[%clk 0:01:16.6]} 28... hxg4 {[%clk 0:01:17.2]} 29. hxg4 {[%clk 0:01:16.2]}
29... Bf6 {[%clk 0:01:17.7]} 30. Qh2 {[%clk 0:01:07.4]} 30... Kg7 {[%clk
0:01:08.3]} 31. Bxf6+ {[%clk 0:01:04.7]} 31... exf6 {[%clk 0:01:02.7]} 32. Kg2
{[%clk 0:00:55.7]} 32... Rh8 {[%clk 0:01:00.7]} 33. Qg1 {[%clk 0:00:53]} 33...
Kf8 {[%clk 0:00:51.6]} 34. Kf3 {[%clk 0:00:42.8]} 34... Rh3+ {[%clk 0:00:49.2]}
35. Ke2 {[%clk 0:00:42.9]} 35... Qb5+ {[%clk 0:00:46.6]} 36. Ke1 {[%clk
0:00:43.1]} 36... Rg3 {[%clk 0:00:45.7]} 37. Ra1 {[%clk 0:00:38.6]} 37... Rxg1
{[%clk 0:00:33.1]} 38. Rxg1 {[%clk 0:00:38.9]} 38... b3 {[%clk 0:00:07.7]} 39.
gxf5 {[%clk 0:00:23.7]} 39... bxc2 {[%clk 0:00:07.1]} 40. fxg6 {[%clk
0:00:23.2]} 40... Qd3 {[%clk 0:00:04.8]} 41. Ra8+ {[%clk 0:00:22.1]} 1-0